fUST/lending_fUST_20241228
["ID","MTS","AMOUNT","RATE_DAILY","PERIOD"]
[346858404,1735328947111,-500.0,0.00012679,2]
[346858405,1735328947134,-500.0,0.0001272,2]
[346858406,1735328947156,-428.0674846,0.0001272,2]
[346858407,1735328947178,-500.0,0.0001272,2]
[346858408,1735328947201,-500.0,0.0001272,2]
[346858409,1735328947224,-500.0,0.0001272,2]
[346858410,1735328947245,-152.27287634,0.0001272,2]
[346858411,1735328947267,-500.0,0.0001272,2]
[346858412,1735328947289,-500.0,0.0001272,2]
[346858413,1735328947312,-500.0,0.0001272,2]
[346858414,1735328947339,-500.0,0.0001272,2]
[346858415,1735328947361,-500.0,0.0001272,2]
[346858416,1735328947382,-500.0,0.0001272,2]
[346858417,1735328947406,-500.0,0.0001272,2]
[346858418,1735328947429,-531.01,0.0001272,2]
[346858419,1735328947453,-500.0,0.0001272,2]
[346858420,1735328947476,-500.0,0.0001272,2]
[346858421,1735328947499,-500.0,0.0001272,2]
[346858422,1735328947522,-500.0,0.0001272,2]
[346858423,1735328947545,-500.0,0.0001272,2]
[346858424,1735328947567,-570.05,0.0001272,2]
[346858425,1735328947589,-500.0,0.0001272,2]
[346858426,1735328947611,-500.0,0.00012721,2]
[346858427,1735328947633,-1874.31,0.00012721,2]
[346858428,1735328947655,-574.16,0.00012721,2]
[346858429,1735328947678,-308.69,0.00012844,2]
[346858430,1735328947700,-500.0,0.00012844,2]
[346858431,1735328947722,-176.27747807,0.000129,2]
[346858432,1735328947743,-201.46846551,0.00012993,2]
[346858433,1735328947763,-583.40108742,0.00012993,2]
[346858434,1735328947786,-500.0,0.00012993,2]
[346858435,1735328947809,-500.0,0.00012993,2]
[346858436,1735328947831,-500.0,0.00012993,2]
[346858437,1735328947854,-376.63096819,0.00012993,2]
[346858438,1735328947876,-460.09834238,0.00012993,2]
[346858439,1735328947900,-500.0,0.00012993,2]
[346858440,1735328947921,-326.26597531,0.00012993,2]
[346858441,1735328947945,-500.0,0.00012994,2]
[346858442,1735328947966,-500.0,0.00012994,2]
[346858443,1735328947989,-500.0,0.00012994,2]
[346858444,1735328948013,-500.0,0.00012994,2]
[346858445,1735328948034,-500.0,0.00012994,2]
[346858446,1735328948056,-500.0,0.00012994,2]
[346858447,1735328948078,-500.0,0.00012994,2]
[346858448,1735328948100,-500.0,0.00012994,2]
[346858449,1735328948122,-500.0,0.00012994,2]
[346858450,1735328948144,-438.85386255,0.00012994,2]
[346858451,1735328948166,-76.53191737,0.00012994,2]
[346858452,1735328948238,-423.46808263,0.00012994,2]
[346858453,1735328948261,-500.0,0.00012994,2]
[346858454,1735328948282,-500.0,0.00012994,2]
[346858455,1735328948303,-1124.22994174,0.00012995,2]
[346858456,1735328953100,-500.0,0.00011898,2]
[346858457,1735328953123,-500.0,0.00012172,2]
[346858458,1735328953145,-750.08005826,0.00012995,2]
[346858459,1735328953167,-500.0,0.00013118,2]
[346858460,1735328953189,-536.63580777,0.00013213,2]
[346858461,1735328953213,-500.0,0.00013213,2]
[346858462,1735328953238,-500.0,0.00013268,2]
[346858463,1735328953260,-500.0,0.00013268,2]
[346858464,1735328953283,-500.0,0.00013268,2]
[346858465,1735328953305,-500.0,0.00013268,2]
[346858466,1735328953331,-500.0,0.00013268,2]
[346858467,1735328953352,-500.0,0.00013268,2]
[346858468,1735328953376,-500.0,0.00013268,2]
[346858469,1735328953399,-500.0,0.00013268,2]
[346858470,1735328953423,-1874.31,0.00013269,2]
[346858471,1735328953446,-506.13385389,0.00013317,2]
[346858472,1735328962131,-539.98614611,0.00013317,2]
[346858473,1735328962153,-80.1763364,0.00013382,2]
[346858474,1735328968126,-500.0,0.00011899,2]
[346858475,1735328968149,-419.8236636,0.00013382,2]
[346858476,1735328968184,-490.83938498,0.00013382,2]
[346858477,1735328968210,-500.0,0.00013392,2]
[346858478,1735328968248,-500.0,0.00013542,2]
[346858479,1735328968280,-500.0,0.00013542,2]
[346858480,1735328968312,-500.0,0.00013542,2]
[346858481,1735328968345,-500.0,0.00013542,2]
[346858482,1735328968371,-222.64,0.00013542,2]
[346858483,1735328968401,-500.0,0.00013542,2]
[346858484,1735328968431,-500.0,0.00013542,2]
[346858485,1735328968459,-500.0,0.00013542,2]
[346858486,1735328968491,-1874.31,0.00013543,2]
[346858487,1735328968520,-500.0,0.0001359,2]
[346858488,1735328968547,-500.0,0.0001359,2]
[346858489,1735328968575,-500.0,0.0001359,2]
[346858490,1735328968600,-500.0,0.0001359,2]
[346858491,1735328968625,-500.0,0.0001359,2]
[346858492,1735328968652,-500.0,0.0001359,2]
[346858493,1735328968679,-500.0,0.0001359,2]
[346858494,1735328968707,-1768.33,0.0001359,2]
[346858495,1735328968735,-500.0,0.0001359,2]
[346858496,1735328968760,-500.0,0.0001359,2]
[346858497,1735328968785,-357.06585083,0.0001359,2]
[346858498,1735328968809,-1046.12,0.00013591,2]
[346858499,1735328968853,-500.0,0.00013666,2]
[346858500,1735328968893,-378.656676,0.00013699,2]
[346858501,1735328968934,-1000.0,0.0001376,2]
[346858502,1735328968974,-152.0,0.00013782,2]
[346858503,1735328969018,-500.0,0.00013816,2]
[346858504,1735328969060,-500.0,0.00013816,2]
[346858505,1735328969103,-500.0,0.00013816,2]
[346858506,1735328969144,-1874.31,0.00013817,2]
[346858507,1735328969186,-500.0,0.00013863,2]
[346858508,1735328969228,-500.0,0.00013863,2]
[346858509,1735328969269,-500.0,0.00013863,2]
[346858510,1735328969312,-500.0,0.00013863,2]
[346858511,1735328969355,-1000.0,0.00013863,2]
[346858512,1735328969397,-500.0,0.00013863,2]
[346858513,1735328969444,-1768.33,0.00013864,2]
[346858514,1735328969490,-1046.12,0.00013865,2]
[346858515,1735328969533,-503.8271329,0.00013872,2]
[346858516,1735328969577,-500.0,0.0001394,2]
[346858517,1735328969617,-501.80294529,0.00013972,2]
[346858518,1735328969662,-350.32,0.0001409,2]
[346858519,1735328969704,-332.76,0.0001409,2]
[346858520,1735328969751,-500.0,0.0001409,2]
[346858521,1735328969793,-1874.31,0.00014091,2]
[346858522,1735328969835,-500.0,0.00014137,2]
[346858523,1735328969880,-500.0,0.00014137,2]
[346858524,1735328969924,-1768.33,0.00014138,2]
[346858525,1735328969972,-1046.12,0.00014139,2]
[346858526,1735328970016,-500.0,0.00014214,2]
[346858527,1735328970061,-500.0,0.00014364,2]
[346858528,1735328970103,-1874.31,0.00014365,2]
[346858529,1735328970145,-500.0,0.00014411,2]
[346858530,1735328970188,-1768.33,0.00014412,2]
[346858531,1735328970233,-1046.12,0.00014413,2]
[346858532,1735328970279,-608.05505864,0.00014488,2]
[346858533,1735328970328,-500.0,0.00014638,2]
[346858534,1735328970375,-1874.31,0.00014639,2]
[346858535,1735328970419,-396.88,0.00014685,2]
[346858536,1735328970468,-1768.33,0.00014686,2]
[346858537,1735328970518,-1046.12,0.00014687,2]
[346858538,1735328970566,-500.0,0.00014912,2]
[346858539,1735328970781,-1874.31,0.00014913,2]
[346858540,1735328970829,-1768.33,0.0001496,2]
[346858541,1735328970871,-1046.12,0.00014961,2]
[346858542,1735328970915,-500.0,0.00015186,2]
[346858543,1735328970957,-1874.31,0.00015187,2]
[346858544,1735328970999,-1768.33,0.00015234,2]
[346858545,1735328971041,-1046.12,0.00015235,2]
[346858546,1735328971081,-181.04404111,0.00015361,2]
[346858547,1735328971122,-500.0,0.0001546,2]
[346858548,1735328971163,-1874.31,0.00015461,2]
[346858549,1735328971207,-1768.33,0.00015508,2]
[346858550,1735328971248,-1046.12,0.00015509,2]
[346858551,1735328971291,-500.0,0.00015734,2]
[346858552,1735328971331,-1874.31,0.00015735,2]
[346858553,1735328971373,-1768.33,0.00015782,2]
[346858554,1735328971416,-1046.12,0.00015783,2]
[346858555,1735328971459,-500.0,0.00016008,2]
[346858556,1735328971500,-1874.31,0.00016009,2]
[346858557,1735328971542,-1768.33,0.00016056,2]
[346858558,1735328971584,-1046.12,0.00016057,2]
[346858559,1735328971624,-176.27747805,0.00016096,2]
[346858560,1735328971665,-500.0,0.00016282,2]
[346858561,1735328971704,-1874.31,0.00016283,2]
[346858562,1735328971744,-1768.33,0.0001633,2]
[346858563,1735328971783,-1046.12,0.00016331,2]
[346858564,1735328971820,-500.0,0.00016438,2]
[346858565,1735328971859,-578.73064402,0.00016556,2]
[346858566,1735328971894,-1874.31,0.00016557,2]
[346858567,1735328971932,-222.554,0.00016578,2]
[346858568,1735328971970,-1768.33,0.00016604,2]
[346858569,1735328972007,-1046.12,0.00016605,2]
[346858570,1735328972042,-1874.31,0.00016831,2]
[346858571,1735328972079,-1143.87577306,0.00016878,2]
[346858572,1735328973090,-490.0,0.0001272,2]
[346858663,1735329036590,-185.9312495,0.0001262,2]
[346858664,1735329036601,-10.0,0.0001272,2]
[346858665,1735329036610,-1255.49,0.0001272,2]
[346858666,1735329036619,-500.0,0.0001272,2]
[346858667,1735329036630,-290.46,0.00012994,2]
[346858668,1735329036639,-1255.49,0.00012994,2]
[346858669,1735329036648,-197.52,0.00012994,2]
[346858670,1735329036657,-500.0,0.00013213,2]
[346858671,1735329036667,-1255.49,0.00013268,2]
[346858672,1735329036677,-1255.49,0.00013542,2]
[346858673,1735329036686,-1000.0,0.0001376,2]
[346858674,1735329036696,-1255.49,0.00013816,2]
[346858675,1735329036706,-1255.49,0.0001409,2]
[346858676,1735329036715,-1255.49,0.00014364,2]
[346858677,1735329036725,-1255.49,0.00014638,2]
[346858678,1735329036734,-1255.49,0.00014912,2]
[346858679,1735329036743,-1255.49,0.00015186,2]
[346858680,1735329036752,-1255.49,0.0001546,2]
[346858681,1735329036763,-1255.49,0.00015734,2]
[346858682,1735329036773,-1255.49,0.00016008,2]
[346858683,1735329036782,-1255.49,0.00016282,2]
[346858684,1735329036792,-1255.49,0.00016556,2]
[346858685,1735329036801,-1255.49,0.0001683,2]
[346858686,1735329036810,-624.45422694,0.00016878,2]
[346858687,1735329036820,-1046.12,0.00016879,2]
[346858688,1735329036829,-198.33,0.00017,2]
[346858689,1735329036838,-1255.49,0.00017104,2]
[346858690,1735329036848,-1874.31,0.00017105,2]
[346858691,1735329036857,-1768.33,0.00017152,2]
[346858692,1735329036867,-1046.12,0.00017153,2]
[346858693,1735329036876,-1255.49,0.00017378,2]
[346858694,1735329036885,-1874.31,0.00017379,2]
[346858695,1735329036895,-117.39743773,0.00017426,2]
[346858725,1735329038886,-1650.93256227,0.00017426,2]
[346858726,1735329038896,-1046.12,0.00017427,2]
[346858727,1735329038905,-1255.49,0.00017652,2]
[346858728,1735329038915,-1874.31,0.00017653,2]
[346858729,1735329038924,-1768.33,0.000177,2]
[346858730,1735329039048,-1046.12,0.00017701,2]
[346858731,1735329039058,-500.0,0.00017808,4]
[346858732,1735329039068,-1200.0,0.00017888,2]
[346858733,1735329039077,-1255.49,0.00017926,2]
[346858734,1735329039086,-1874.31,0.00017927,2]
[346858735,1735329039096,-1768.33,0.00017974,2]
[346858736,1735329039106,-1046.12,0.00017975,2]
[346858737,1735329039115,-1177.07083007,0.000182,2]
[346858738,1735329039131,-78.41916993,0.000182,2]
[346858739,1735329039140,-1874.5093977,0.00018201,2]
[346858740,1735329039150,-1768.33,0.00018248,2]
[346858741,1735329039159,-1046.12,0.00018249,2]
[346858742,1735329039168,-1255.49,0.00018474,2]
[346858743,1735329039178,-1768.33,0.00018522,2]
[346858744,1735329039187,-1046.12,0.00018523,2]
[346858745,1735329039197,-1255.49,0.00018748,2]
[346858746,1735329039206,-1768.33,0.00018796,2]
[346858747,1735329039218,-1046.12,0.00018797,2]
[346858748,1735329039228,-1421.20759513,0.000189,2]
[346858749,1735329039238,-302.57643837,0.00019,2]
[346858750,1735329039247,-302.57643837,0.00019,2]
[346858751,1735329039256,-1255.55,0.00019022,2]
[346858752,1735329039267,-500.0,0.00019069,2]
[346858753,1735329039276,-162.23314915,0.00019069,2]
[346858754,1735329039285,-1768.33,0.0001907,2]
[346858755,1735329039295,-1046.12,0.00019071,2]
[346858756,1735329039304,-500.0,0.00019178,6]
[346858757,1735329039315,-1311.36,0.00019178,2]
[346858758,1735329039324,-1311.36,0.00019178,2]
[346858759,1735329039334,-1311.36,0.00019178,2]
[346858760,1735329039345,-1311.36,0.00019178,2]
[346858761,1735329039355,-1311.36,0.00019178,2]
[346858762,1735329039370,-1311.36,0.00019178,2]
[346858763,1735329039379,-1311.36,0.00019178,2]
[346858764,1735329039391,-1311.36,0.00019178,2]
[346858765,1735329039401,-1311.36,0.00019178,2]
[346858766,1735329039414,-1311.36,0.00019178,2]
[346858767,1735329039423,-1311.36,0.00019178,2]
[346858768,1735329039435,-627.26,0.00019178,2]
[346858769,1735329039447,-627.26,0.00019178,2]
[346858770,1735329039457,-1311.36,0.00019178,2]
[346858771,1735329039467,-627.26,0.00019178,2]
[346858772,1735329039478,-627.26,0.00019178,2]
[346858773,1735329039488,-1311.36,0.00019178,2]
[346858774,1735329039498,-627.26,0.00019178,2]
[346858775,1735329039507,-627.26,0.00019178,2]
[346858776,1735329039518,-1311.36,0.00019178,2]
[346858778,1735329039527,-627.26,0.00019178,2]
[346858780,1735329039537,-627.26,0.00019178,2]
[346858782,1735329039548,-1311.36,0.00019178,2]
[346858784,1735329039558,-627.26,0.00019178,2]
[346858786,1735329039567,-627.26,0.00019178,2]
[346858788,1735329039576,-627.26,0.00019178,2]
[346858790,1735329039586,-627.26,0.00019178,2]
[346858792,1735329039595,-627.26,0.00019178,2]
[346858794,1735329039605,-1311.36,0.00019178,2]
[346858795,1735329039615,-1311.36,0.00019178,2]
[346858796,1735329039625,-627.26,0.00019178,2]
[346858798,1735329039634,-627.26,0.00019178,2]
[346858800,1735329039643,-627.26,0.00019178,2]
[346858802,1735329039652,-1311.36,0.00019178,2]
[346858804,1735329039662,-627.26,0.00019178,2]
[346858805,1735329039672,-627.26,0.00019178,2]
[346858807,1735329039681,-627.26,0.00019178,2]
[346858809,1735329039690,-1311.36,0.00019178,2]
[346858811,1735329039699,-627.26,0.00019178,2]
[346858813,1735329039709,-627.26,0.00019178,2]
[346858815,1735329039718,-627.26,0.00019178,2]
[346858817,1735329039727,-627.26,0.00019178,2]
[346858819,1735329039737,-1311.36,0.00019178,2]
[346858821,1735329039746,-627.43285409,0.00019178,2]
[346858823,1735329039755,-1311.36,0.00019178,2]
[346858825,1735329039765,-1311.36,0.00019178,2]
[346858827,1735329039774,-151.0,0.00019187,7]
[346858829,1735329039784,-302.57643837,0.0001919,2]
[346858831,1735329039793,-302.57643837,0.0001919,2]
[346858832,1735329039803,-667.603,0.0001921,2]
[346858833,1735329039812,-352.3665978,0.0001926,2]
[346858834,1735329039821,-500.0,0.00019343,2]
[346858835,1735329039831,-1768.33,0.00019344,2]
[346858836,1735329039840,-1311.36,0.00019345,2]
[346858837,1735329039849,-1046.12,0.00019345,2]
[346858838,1735329039858,-302.57643837,0.0001938,2]
[346858839,1735329039868,-303.48326083,0.0001938,2]
[346858841,1735329039877,-151.0,0.00019531,7]
[346858843,1735329039886,-500.0,0.00019553,14]
[346858845,1735329039896,-302.57643837,0.0001957,2]
[346858847,1735329039906,-500.0,0.00019617,2]
[346858849,1735329039916,-1768.33,0.00019618,2]
[346858851,1735329039925,-1311.42,0.00019619,2]
[346858853,1735329039935,-1046.21,0.00019619,2]
[346858855,1735329039944,-594.99,0.000197,7]
[346858857,1735329039953,-302.57643837,0.0001976,2]
[346858859,1735329039963,-10382.26819221,0.00019804,2]
[346858861,1735329039972,-151.0,0.00019874,7]
[346858863,1735329039981,-151.0,0.00019874,7]
[346858865,1735329039991,-500.0,0.00019891,2]
[346858866,1735329040000,-1768.3571549,0.00019892,2]
[346858867,1735329040011,-303.1809867,0.0001995,4]
[346858868,1735329040021,-10310.54764679,0.0002,2]
[346858869,1735329040031,-151.40492784,0.0002,2]
[346858870,1735329040042,-1495.63608101,0.0002,2]
[346858872,1735329040052,-674.2481889,0.00020015,2]
[346858874,1735329040061,-6019.23482484,0.000201,2]
[346858876,1735329040069,-6019.23482481,0.000201,2]
[346858878,1735329040079,-6019.23482481,0.000201,2]
[346858879,1735329040088,-2000.0,0.000201,2]
[346858881,1735329040098,-4599.38832551,0.000201,2]
[346858883,1735329040108,-4599.3883255,0.000201,2]
[346858884,1735329040117,-4599.3883255,0.000201,2]
[346858885,1735329040127,-4599.3883255,0.000201,2]
[346858886,1735329040136,-10032.05804139,0.000201,2]
[346858887,1735329040145,-10032.05804136,0.000201,2]
[346858888,1735329040155,-10032.05804136,0.000201,2]
[346858889,1735329040165,-10032.05804136,0.000201,2]
[346858890,1735329040175,-20951.32271557,0.000201,2]
[346858891,1735329040185,-2000.0,0.000201,2]
[346858892,1735329040195,-365.89724408,0.00020109,2]
[346858893,1735329040205,-185.10028521,0.00020109,2]
[346858894,1735329040215,-27775.67058052,0.0002011,3]
[346858895,1735329040224,-6019.23482481,0.00020118,2]
[346858896,1735329040233,-666.0,0.00020118,2]
[346858897,1735329040242,-500.0,0.00020165,2]
[346858898,1735329040252,-14008.02106842,0.0002021,2]
[346858899,1735329041611,-325.17776497,0.0002021,2]
[346858900,1735329041624,-1455.86822617,0.0002021,2]
[346858901,1735329041635,-2706.80410819,0.0002021,2]
[346858902,1735329041648,-90983.05855797,0.0002021,2]
[346858903,1735329041657,-150.23,0.00020218,2]
[346858904,1735329041667,-202.39543627,0.00020218,2]
[346858905,1735329041677,-151.0,0.00020218,15]
[346858906,1735329041687,-151.0,0.00020218,15]
[346858907,1735329041696,-150.23,0.00020218,2]
[346858908,1735329041706,-500.0,0.00020218,2]
[346858909,1735329041716,-150.23,0.00020218,2]
[346858910,1735329041725,-150.23,0.00020218,2]
[346858911,1735329041735,-150.23,0.00020218,2]
[346858912,1735329041744,-285.03085538,0.00020219,2]
[346858913,1735329041755,-526.6,0.00020219,2]
[346858914,1735329041768,-729.75,0.00020219,2]
[346858915,1735329041779,-2009.03677243,0.00020219,2]
[346858916,1735329041791,-2985.36982269,0.00020219,2]
[346858917,1735329041799,-4864.51868569,0.00020219,2]
[346858918,1735329041811,-346.3761429,0.00020219,2]
[346858963,1735329042842,-176.27747805,0.00017278,2]
[346858965,1735329042853,-1020.46587333,0.00018986,2]
[346858967,1735329042862,-5547.37989914,0.00020219,2]
[346858969,1735329042873,-23490.76285695,0.00020219,2]
[346858975,1735329042920,-44074.47567093,0.00020219,2]
[346858977,1735329042930,-37325.76052832,0.00020219,10]
[346858979,1735329042942,-2242.47030413,0.00020219,10]
[346858982,1735329042954,-45699.5952123,0.00020219,10]
[346858984,1735329042964,-46285.9663024,0.00020219,10]
[346858986,1735329042975,-2568.38138318,0.00020219,10]
[346859098,1735329045873,-24181.91801593,0.00020219,10]
[346859172,1735329046598,-7232.29935547,0.00020219,10]
[346859174,1735329046610,-29599.00592296,0.00020219,10]
[346859234,1735329674367,1313.84541514,0.00017,6]
[346859236,1735329885358,250.0,0.00023,120]
[346859237,1735329906208,250.0,0.00023,120]
[346859238,1735329939191,-156.73515065,0.00011445,2]
[346859240,1735329974719,467.0,0.00023,120]
[346859241,1735330027103,-287.36728052,0.00011445,2]
[346859242,1735330027125,-444.10243117,0.00011561,2]
[346859243,1735330027146,-500.0,0.00011898,2]
[346859244,1735330027168,-208.84492922,0.00012004,2]
[346859245,1735330038103,-91.15507078,0.00012004,2]
[346859246,1735330038126,-142.55966625,0.00012005,2]
[346859247,1735330151099,-300.0,0.00012004,2]
[346859248,1735330151122,-357.44033375,0.00012005,2]
[346859249,1735330151145,-500.0,0.00012005,2]
[346859250,1735330151167,-500.0,0.00012005,2]
[346859251,1735330151187,-500.0,0.00012005,2]
[346859252,1735330151209,-500.0,0.00012005,2]
[346859253,1735330151231,-500.0,0.00012005,2]
[346859254,1735330151254,-500.0,0.00012005,2]
[346859255,1735330151275,-500.0,0.00012005,2]
[346859256,1735330151297,-500.0,0.00012005,2]
[346859257,1735330151319,-500.0,0.00012005,2]
[346859258,1735330151342,-500.0,0.00012005,2]
[346859259,1735330151363,-500.0,0.00012005,2]
[346859260,1735330151388,-500.0,0.00012005,2]
[346859261,1735330151410,-500.0,0.00012005,2]
[346859262,1735330151432,-500.0,0.00012005,2]
[346859263,1735330151456,-500.0,0.00012005,2]
[346859264,1735330151477,-500.0,0.00012005,2]
[346859265,1735330151500,-500.0,0.00012005,2]
[346859266,1735330151523,-500.0,0.00012005,2]
[346859267,1735330151544,-500.0,0.00012005,2]
[346859268,1735330151567,-500.0,0.00012005,2]
[346859269,1735330151587,-500.0,0.00012005,2]
[346859270,1735330151610,-500.0,0.00012005,2]
[346859271,1735330151631,-545.07,0.00012005,2]
[346859272,1735330151652,-500.0,0.00012005,2]
[346859273,1735330151672,-500.0,0.00012005,2]
[346859274,1735330151693,-500.0,0.00012005,2]
[346859275,1735330151715,-500.0,0.00012005,2]
[346859276,1735330151735,-500.0,0.00012005,2]
[346859277,1735330151755,-500.0,0.00012005,2]
[346859278,1735330151776,-500.0,0.00012005,2]
[346859279,1735330151796,-629.56743147,0.00012005,2]
[346859280,1735330151818,-500.0,0.00012005,2]
[346859281,1735330151838,-500.0,0.00012005,2]
[346859282,1735330151858,-500.0,0.00012005,2]
[346859283,1735330151879,-500.0,0.00012005,2]
[346859284,1735330151900,-500.0,0.00012005,2]
[346859285,1735330151923,-500.0,0.00012005,2]
[346859286,1735330151943,-500.0,0.00012005,2]
[346859287,1735330151967,-500.0,0.00012005,2]
[346859288,1735330151989,-500.0,0.00012005,2]
[346859289,1735330152009,-500.0,0.00012005,2]
[346859290,1735330152030,-21384.7537523,0.00012006,2]
[346859291,1735330152051,-564.84091161,0.00012171,2]
[346859292,1735330152073,-500.0,0.00012172,2]
[346859293,1735330152094,-500.0,0.00012279,2]
[346859294,1735330152116,-500.0,0.00012279,2]
[346859295,1735330152137,-500.0,0.00012279,2]
[346859296,1735330152158,-500.0,0.00012279,2]
[346859297,1735330152179,-500.0,0.00012279,2]
[346859298,1735330152201,-500.0,0.00012279,2]
[346859299,1735330152222,-500.0,0.00012279,2]
[346859300,1735330152242,-518.7,0.00012279,2]
[346859301,1735330152264,-500.0,0.00012279,2]
[346859302,1735330152286,-500.0,0.00012279,2]
[346859303,1735330152308,-500.0,0.00012279,2]
[346859304,1735330152329,-609.41943383,0.00012279,2]
[346859305,1735330152351,-500.0,0.00012279,2]
[346859306,1735330152373,-238.54939534,0.00012279,2]
[346859307,1735330153136,-261.45060466,0.00012279,2]
[346859308,1735330153157,-500.0,0.00012279,2]
[346859309,1735330153180,-500.0,0.00012279,2]
[346859310,1735330153200,-500.0,0.00012279,2]
[346859311,1735330153221,-500.0,0.00012279,2]
[346859312,1735330153241,-500.0,0.00012279,2]
[346859313,1735330153262,-208.89781383,0.00012279,2]
[346859314,1735330153284,-500.0,0.00012279,2]
[346859315,1735330153307,-500.0,0.00012279,2]
[346859316,1735330153328,-520.57024229,0.00012279,2]
[346859317,1735330153351,-500.0,0.00012279,2]
[346859318,1735330153371,-500.0,0.00012279,2]
[346859319,1735330153392,-500.0,0.00012279,2]
[346859320,1735330153414,-500.0,0.00012279,2]
[346859321,1735330153437,-500.0,0.00012279,2]
[346859322,1735330153458,-242.56,0.00012279,2]
[346859323,1735330153481,-500.0,0.00012279,2]
[346859324,1735330153504,-500.0,0.00012279,2]
[346859325,1735330153525,-196.3,0.00012279,2]
[346859326,1735330153548,-500.0,0.00012279,2]
[346859327,1735330153571,-500.0,0.00012279,2]
[346859328,1735330153593,-500.0,0.00012279,2]
[346859329,1735330153627,-500.0,0.00012279,2]
[346859330,1735330153791,-500.0,0.00012445,2]
[346859331,1735330153815,-500.0,0.00012445,2]
[346859332,1735330153838,-500.0,0.00012446,2]
[346859333,1735330153858,-500.0,0.000125,2]
[346859334,1735330153879,-180.25905462,0.00012552,2]
[346859335,1735330153901,-500.0,0.00012553,2]
[346859336,1735330153925,-500.0,0.00012553,2]
[346859337,1735330153948,-500.0,0.00012553,2]
[346859338,1735330153970,-500.0,0.00012553,2]
[346859339,1735330153992,-500.0,0.00012553,2]
[346859340,1735330154015,-500.0,0.00012553,2]
[346859341,1735330154038,-500.0,0.00012553,2]
[346859342,1735330154059,-500.0,0.00012553,2]
[346859343,1735330154082,-500.0,0.00012553,2]
[346859344,1735330154103,-500.0,0.00012553,2]
[346859345,1735330154125,-500.0,0.00012553,2]
[346859346,1735330154146,-212.58,0.00012553,2]
[346859347,1735330154168,-500.0,0.00012553,2]
[346859348,1735330154188,-500.0,0.00012553,2]
[346859349,1735330154211,-500.0,0.00012553,2]
[346859350,1735330154233,-500.0,0.00012553,2]
[346859351,1735330154255,-500.0,0.00012553,2]
[346859352,1735330154276,-500.0,0.00012553,2]
[346859353,1735330154296,-500.0,0.00012553,2]
[346859354,1735330154318,-500.0,0.00012553,2]
[346859355,1735330154338,-500.0,0.00012553,2]
[346859356,1735330154359,-500.0,0.00012553,2]
[346859357,1735330154380,-500.0,0.00012553,2]
[346859358,1735330154402,-500.0,0.00012553,2]
[346859359,1735330154423,-500.0,0.00012553,2]
[346859360,1735330154445,-500.0,0.00012553,2]
[346859361,1735330154468,-500.0,0.00012553,2]
[346859362,1735330154490,-500.0,0.00012719,2]
[346859363,1735330154517,-500.0,0.0001272,2]
[346859364,1735330154538,-500.0,0.0001272,2]
[346859365,1735330154559,-500.0,0.0001272,2]
[346859366,1735330154585,-500.0,0.00012827,2]
[346859367,1735330154607,-500.0,0.00012827,2]
[346859368,1735330154628,-590.04,0.00012827,2]
[346859369,1735330154650,-500.0,0.00012827,2]
[346859370,1735330154671,-500.0,0.00012827,2]
[346859371,1735330154694,-500.0,0.00012827,2]